[Event "*** SCC Grand Prix: Titled Tuesday Blitz"]
[Site "Chess.com"]
[Date "2020.06.09"]
[Round "7"]
[White "Kapibara_Warri0r"]
[Black "Playgood28"]
[Result "0-1"]
[WhiteElo "2112"]
[BlackElo "2262"]
[TimeControl "180+1"]
[EndTime "10:20:33 PDT"]
[Termination "Playgood28 won by resignation"]

1. e4 {[%clk 0:03:00.9]} 1... e5 {[%clk 0:02:59.6]} 2. Nf3 {[%clk 0:03:00.5]}
2... d6 {[%clk 0:02:59.5]} 3. d4 {[%clk 0:02:59.1]} 3... exd4 {[%clk 0:02:59.5]}
4. Nxd4 {[%clk 0:02:58.9]} 4... Nf6 {[%clk 0:02:59.2]} 5. Nc3 {[%clk 0:02:57.3]}
5... Be7 {[%clk 0:02:59.5]} 6. Bf4 {[%clk 0:02:50]} 6... O-O {[%clk 0:02:57.5]}
7. Be2 {[%clk 0:02:42.8]} 7... a6 {[%clk 0:02:56.9]} 8. Qd3 {[%clk 0:02:29.8]}
8... c5 {[%clk 0:02:50.7]} 9. Nf5 {[%clk 0:02:15.3]} 9... Bxf5 {[%clk 0:02:50]}
10. exf5 {[%clk 0:02:16.2]} 10... Nc6 {[%clk 0:02:45.5]} 11. g4 {[%clk
0:01:44.1]} 11... Nb4 {[%clk 0:02:19.3]} 12. Qd2 {[%clk 0:01:42.4]} 12... d5
{[%clk 0:02:13.6]} 13. a3 {[%clk 0:01:38.8]} 13... d4 {[%clk 0:02:01]} 14. axb4
{[%clk 0:01:14.6]} 14... dxc3 {[%clk 0:02:00.1]} 15. bxc3 {[%clk 0:01:13.3]}
15... cxb4 {[%clk 0:01:43.1]} 16. Qxd8 {[%clk 0:00:44.7]} 16... Raxd8 {[%clk
0:01:40.5]} 17. Bf3 {[%clk 0:00:42.4]} 17... Nd5 {[%clk 0:01:30.5]} 18. Bxd5
{[%clk 0:00:39.2]} 18... Rxd5 {[%clk 0:01:30]} 19. cxb4 {[%clk 0:00:24.8]} 19...
Bxb4+ {[%clk 0:01:27.6]} 20. Ke2 {[%clk 0:00:24.9]} 20... Rc8 {[%clk 0:01:15.8]}
21. Ra2 {[%clk 0:00:15.5]} 21... Rd4 {[%clk 0:00:56.8]} 22. Kf3 {[%clk
0:00:11.3]} 22... Rcc4 {[%clk 0:00:44.5]} 23. Be3 {[%clk 0:00:10.6]} 23... Rxg4
{[%clk 0:00:43.8]} 24. h3 {[%clk 0:00:10.2]} 24... Rge4 {[%clk 0:00:40.8]} 25.
Rd1 {[%clk 0:00:10.1]} 25... h5 {[%clk 0:00:38.7]} 26. Rd8+ {[%clk 0:00:09.7]}
26... Kh7 {[%clk 0:00:38.2]} 27. Rb2 {[%clk 0:00:08.2]} 27... Re7 {[%clk
0:00:29.2]} 28. Rb3 {[%clk 0:00:05.1]} 28... a5 {[%clk 0:00:25]} 29. Rb1 {[%clk
0:00:04.7]} 29... Re5 {[%clk 0:00:20.4]} 30. Rd7 {[%clk 0:00:02.9]} 30... Rxf5+
{[%clk 0:00:19.8]} 31. Kg2 {[%clk 0:00:03.5]} 31... b5 {[%clk 0:00:19.6]} 32.
Rbd1 {[%clk 0:00:02.6]} 32... Bc5 {[%clk 0:00:18.4]} 33. Bxc5 {[%clk 0:00:02]}
33... Rcxc5 {[%clk 0:00:18]} 34. R1d2 {[%clk 0:00:02.6]} 34... a4 {[%clk
0:00:17.3]} 35. Ra7 {[%clk 0:00:03]} 35... Rc4 {[%clk 0:00:16.2]} 36. Rdd7
{[%clk 0:00:03.1]} 36... Kg6 {[%clk 0:00:15.1]} 37. Rd6+ {[%clk 0:00:03.1]}
37... Rf6 {[%clk 0:00:13.6]} 38. Rd5 {[%clk 0:00:03.3]} 38... Rb6 {[%clk
0:00:11.4]} 39. Ra5 {[%clk 0:00:02.9]} 39... Rxc2 {[%clk 0:00:10.3]} 40. Rdxb5
{[%clk 0:00:03]} 40... Rxb5 {[%clk 0:00:09.4]} 41. Rxb5 {[%clk 0:00:03.9]} 41...
Rc4 {[%clk 0:00:09]} 42. Ra5 {[%clk 0:00:04.8]} 42... f6 {[%clk 0:00:08.6]} 43.
f3 {[%clk 0:00:05]} 43... h4 {[%clk 0:00:08.4]} 44. Kh2 {[%clk 0:00:05]} 44...
Kh6 {[%clk 0:00:07.3]} 45. Kg2 {[%clk 0:00:05]} 45... Kg6 {[%clk 0:00:06.9]} 46.
Ra6 {[%clk 0:00:05.2]} 46... Kf5 {[%clk 0:00:06.1]} 47. Ra5+ {[%clk 0:00:05]}
47... Kf4 {[%clk 0:00:06]} 48. Ra7 {[%clk 0:00:04.9]} 48... Rc2+ {[%clk
0:00:05.7]} 49. Kg1 {[%clk 0:00:04.8]} 49... g5 {[%clk 0:00:06.1]} 50. Ra6
{[%clk 0:00:04.2]} 50... f5 {[%clk 0:00:06]} 51. Rxa4+ {[%clk 0:00:04.3]} 51...
Kxf3 {[%clk 0:00:05.5]} 52. Ra3+ {[%clk 0:00:04.8]} 52... Ke4 {[%clk 0:00:05.5]}
53. Ra4+ {[%clk 0:00:04.9]} 53... Ke5 {[%clk 0:00:05.2]} 54. Ra5+ {[%clk
0:00:05.1]} 54... Ke4 {[%clk 0:00:05.3]} 55. Ra4+ {[%clk 0:00:05.2]} 55... Kd3
{[%clk 0:00:05.5]} 56. Ra3+ {[%clk 0:00:05.3]} 56... Rc3 {[%clk 0:00:05.4]} 57.
Ra5 {[%clk 0:00:05.5]} 57... Ke4 {[%clk 0:00:05.4]} 58. Ra4+ {[%clk 0:00:05.7]}
58... Kf3 {[%clk 0:00:04.9]} 59. Ra5 {[%clk 0:00:04.6]} 59... Kg3 {[%clk
0:00:04.7]} 60. Kf1 {[%clk 0:00:04.9]} 60... Rc1+ {[%clk 0:00:04.4]} 61. Ke2
{[%clk 0:00:04.6]} 61... Rc2+ {[%clk 0:00:04.8]} 62. Kd3 {[%clk 0:00:04.2]}
62... Rf2 {[%clk 0:00:03.2]} 63. Rxf5 {[%clk 0:00:04.5]} 63... Rxf5 {[%clk
0:00:02.6]} 64. Ke4 {[%clk 0:00:04.8]} 64... Kxh3 {[%clk 0:00:03.5]} 65. Ke3
{[%clk 0:00:05]} 65... Kg3 {[%clk 0:00:04.2]} 66. Ke4 {[%clk 0:00:05]} 66... h3
{[%clk 0:00:05.1]} 67. Kxf5 {[%clk 0:00:05.3]} 67... h2 {[%clk 0:00:06]} 68.
Kxg5 {[%clk 0:00:05.9]} 68... h1=Q {[%clk 0:00:06.6]} 69. Kf6 {[%clk 0:00:06.2]}
69... Qf1+ {[%clk 0:00:07.2]} 70. Ke6 {[%clk 0:00:06.8]} 70... Qc4+ {[%clk
0:00:07.3]} 71. Ke5 {[%clk 0:00:06.9]} 71... Kf3 {[%clk 0:00:07]} 72. Kd6 {[%clk
0:00:07.4]} 72... Qb5 {[%clk 0:00:06.7]} 73. Ke6 {[%clk 0:00:07.1]} 73... Qc5
{[%clk 0:00:06.5]} 74. Kf6 {[%clk 0:00:07.1]} 74... Ke4 {[%clk 0:00:07.1]} 75.
Ke6 {[%clk 0:00:07]} 75... Qc6+ {[%clk 0:00:06.9]} 76. Kf7 {[%clk 0:00:07.3]}
76... Kf5 {[%clk 0:00:06.4]} 0-1

[Event "*** SCC Grand Prix: Titled Tuesday Blitz"]
[Site "Chess.com"]
[Date "2020.06.09"]
[Round "7"]
[White "Nikithebest"]
[Black "GMaka"]
[Result "1/2-1/2"]
[WhiteElo "2442"]
[BlackElo "2350"]
[TimeControl "180+1"]
[EndTime "10:20:45 PDT"]
[Termination "Game drawn - insufficient material"]

1. e4 {[%clk 0:03:00.7]} 1... c6 {[%clk 0:02:58.1]} 2. d4 {[%clk 0:02:59]} 2...
d5 {[%clk 0:02:59]} 3. f3 {[%clk 0:02:59.7]} 3... dxe4 {[%clk 0:02:59.9]} 4.
fxe4 {[%clk 0:03:00.3]} 4... Nd7 {[%clk 0:02:52.1]} 5. Nf3 {[%clk 0:02:58.1]}
5... e5 {[%clk 0:02:52.4]} 6. Bc4 {[%clk 0:02:57.3]} 6... f6 {[%clk 0:02:15.8]}
7. dxe5 {[%clk 0:02:44.3]} 7... Nxe5 {[%clk 0:02:11.3]} 8. Qxd8+ {[%clk
0:02:34.4]} 8... Kxd8 {[%clk 0:02:11.7]} 9. Nxe5 {[%clk 0:02:32.3]} 9... fxe5
{[%clk 0:02:12.6]} 10. Bg5+ {[%clk 0:02:15]} 10... Nf6 {[%clk 0:02:09.8]} 11.
Nc3 {[%clk 0:02:13.9]} 11... Bb4 {[%clk 0:02:06.1]} 12. O-O-O+ {[%clk
0:02:14.1]} 12... Ke7 {[%clk 0:02:06]} 13. Rhf1 {[%clk 0:01:44.5]} 13... Bxc3
{[%clk 0:02:01.3]} 14. bxc3 {[%clk 0:01:44.4]} 14... Be6 {[%clk 0:02:00.3]} 15.
Bb3 {[%clk 0:01:44.7]} 15... h6 {[%clk 0:01:56]} 16. Bh4 {[%clk 0:01:25.9]}
16... Rad8 {[%clk 0:01:41.8]} 17. Bg3 {[%clk 0:01:22.9]} 17... Rxd1+ {[%clk
0:01:40.8]} 18. Rxd1 {[%clk 0:01:22.2]} 18... Nd7 {[%clk 0:01:41.4]} 19. Rf1
{[%clk 0:01:15.6]} 19... g5 {[%clk 0:01:32.2]} 20. h4 {[%clk 0:01:15.3]} 20...
b5 {[%clk 0:00:52]} 21. a4 {[%clk 0:01:07]} 21... bxa4 {[%clk 0:00:36.8]} 22.
Bxa4 {[%clk 0:01:07.9]} 22... Rc8 {[%clk 0:00:34.4]} 23. Bb3 {[%clk 0:01:04.4]}
23... c5 {[%clk 0:00:31.1]} 24. hxg5 {[%clk 0:01:04.7]} 24... hxg5 {[%clk
0:00:30.8]} 25. Rh1 {[%clk 0:01:05.5]} 25... c4 {[%clk 0:00:30.1]} 26. Ba4
{[%clk 0:00:59.5]} 26... Kd6 {[%clk 0:00:11.9]} 27. Bxd7 {[%clk 0:00:51.6]}
27... Bxd7 {[%clk 0:00:11.1]} 28. Rh6+ {[%clk 0:00:51.7]} 28... Be6 {[%clk
0:00:11.4]} 29. Rg6 {[%clk 0:00:52.1]} 29... g4 {[%clk 0:00:10.2]} 30. Rg5
{[%clk 0:00:51.1]} 30... Rc5 {[%clk 0:00:10.8]} 31. Rg7 {[%clk 0:00:45.4]} 31...
Rb5 {[%clk 0:00:10.7]} 32. Rxa7 {[%clk 0:00:44.6]} 32... Rb6 {[%clk 0:00:09.4]}
33. Ra5 {[%clk 0:00:42.5]} 33... Rc6 {[%clk 0:00:09.7]} 34. Rxe5 {[%clk
0:00:42]} 34... Kd7 {[%clk 0:00:10.6]} 35. Rg5 {[%clk 0:00:42.1]} 35... Ke7
{[%clk 0:00:10.9]} 36. e5 {[%clk 0:00:42.3]} 36... Kf7 {[%clk 0:00:11.1]} 37.
Rh5 {[%clk 0:00:41.5]} 37... Rc5 {[%clk 0:00:09.9]} 38. Rh1 {[%clk 0:00:41.5]}
38... Ra5 {[%clk 0:00:09.7]} 39. Rf1+ {[%clk 0:00:42.3]} 39... Ke7 {[%clk
0:00:08.6]} 40. Rf4 {[%clk 0:00:37.6]} 40... Ra1+ {[%clk 0:00:08]} 41. Kd2
{[%clk 0:00:38.3]} 41... Rg1 {[%clk 0:00:08.6]} 42. Rf2 {[%clk 0:00:38.9]} 42...
Bd5 {[%clk 0:00:08.5]} 43. Ke3 {[%clk 0:00:34.5]} 43... Bxg2 {[%clk 0:00:08.3]}
44. Rf4 {[%clk 0:00:31.3]} 44... Bf3 {[%clk 0:00:07.9]} 45. Rxc4 {[%clk
0:00:30.7]} 45... Rxg3 {[%clk 0:00:07.5]} 46. Kf4 {[%clk 0:00:31]} 46... Rg2
{[%clk 0:00:07.6]} 47. Rc7+ {[%clk 0:00:30.3]} 47... Ke6 {[%clk 0:00:06.9]} 48.
Rg7 {[%clk 0:00:28.6]} 48... Rxc2 {[%clk 0:00:07.8]} 49. Rg6+ {[%clk 0:00:28.6]}
49... Kf7 {[%clk 0:00:08.4]} 50. Rf6+ {[%clk 0:00:29]} 50... Ke7 {[%clk
0:00:08.6]} 51. Rg6 {[%clk 0:00:25.6]} 51... Rxc3 {[%clk 0:00:08.8]} 52. Kf5
{[%clk 0:00:26.3]} 52... Rc5 {[%clk 0:00:07.8]} 53. Rg7+ {[%clk 0:00:26.8]}
53... Kf8 {[%clk 0:00:08.3]} 54. Rg5 {[%clk 0:00:25]} 54... Ra5 {[%clk
0:00:07.5]} 55. Kf6 {[%clk 0:00:23.7]} 55... Ra6+ {[%clk 0:00:06.1]} 56. e6
{[%clk 0:00:24.1]} 56... Rb6 {[%clk 0:00:04.1]} 57. Rh5 {[%clk 0:00:20.4]} 57...
Kg8 {[%clk 0:00:04.2]} 58. Rg5+ {[%clk 0:00:20.6]} 58... Kh7 {[%clk 0:00:04.5]}
59. Kf7 {[%clk 0:00:16.5]} 59... Kh6 {[%clk 0:00:04.5]} 60. Rg6+ {[%clk
0:00:13.4]} 60... Kh5 {[%clk 0:00:05]} 61. Rf6 {[%clk 0:00:06.9]} 61... Bd5
{[%clk 0:00:04.5]} 62. Rf5+ {[%clk 0:00:07]} 62... Kh4 {[%clk 0:00:04.4]} 63.
Rxd5 {[%clk 0:00:07.9]} 63... g3 {[%clk 0:00:05.2]} 64. e7 {[%clk 0:00:06.2]}
64... Rb7 {[%clk 0:00:05.6]} 65. Rd2 {[%clk 0:00:03.3]} 65... Rxe7+ {[%clk
0:00:06.1]} 66. Kxe7 {[%clk 0:00:03.7]} 66... Kh3 {[%clk 0:00:07]} 67. Kf6
{[%clk 0:00:03.8]} 67... g2 {[%clk 0:00:07.9]} 68. Rd1 {[%clk 0:00:04.1]} 68...
Kh2 {[%clk 0:00:08.5]} 69. Rd3 {[%clk 0:00:04.6]} 69... g1=Q {[%clk 0:00:07.7]}
70. Rd5 {[%clk 0:00:05.2]} 70... Kh1 {[%clk 0:00:08.4]} 71. Rh5+ {[%clk
0:00:05.6]} 71... Kg2 {[%clk 0:00:09.3]} 72. Rg5+ {[%clk 0:00:06.2]} 72... Kf1
{[%clk 0:00:10.2]} 73. Rxg1+ {[%clk 0:00:07]} 73... Kxg1 {[%clk 0:00:10.8]}
1/2-1/2

[Event "*** SCC Grand Prix: Titled Tuesday Blitz"]
[Site "Chess.com"]
[Date "2020.06.09"]
[Round "7"]
[White "olksuna"]
[Black "pheonixking2000"]
[Result "1/2-1/2"]
[WhiteElo "2636"]
[BlackElo "2777"]
[TimeControl "180+1"]
[EndTime "10:22:12 PDT"]
[Termination "Game drawn by 50-move rule"]

1. c4 {[%clk 0:03:00.9]} 1... g6 {[%clk 0:02:59.3]} 2. Nc3 {[%clk 0:03:00.8]}
2... Bg7 {[%clk 0:02:59.9]} 3. g3 {[%clk 0:03:01.6]} 3... c5 {[%clk 0:02:59]} 4.
Bg2 {[%clk 0:03:01.4]} 4... Nc6 {[%clk 0:02:59.7]} 5. Nf3 {[%clk 0:03:01.5]}
5... e6 {[%clk 0:03:00.3]} 6. d4 {[%clk 0:03:00.9]} 6... cxd4 {[%clk 0:02:58.3]}
7. Nb5 {[%clk 0:02:59.9]} 7... d5 {[%clk 0:02:58.8]} 8. cxd5 {[%clk 0:02:59.5]}
8... Qa5+ {[%clk 0:02:59.4]} 9. Nd2 {[%clk 0:02:58.5]} 9... Qxb5 {[%clk
0:02:55.6]} 10. a4 {[%clk 0:02:56.1]} 10... Qc5 {[%clk 0:02:45.2]} 11. dxc6
{[%clk 0:02:50.9]} 11... bxc6 {[%clk 0:02:45.1]} 12. b3 {[%clk 0:02:51.1]} 12...
d3 {[%clk 0:02:30.4]} 13. Ba3 {[%clk 0:02:42.9]} 13... Qe5 {[%clk 0:02:26]} 14.
Rc1 {[%clk 0:02:15.7]} 14... Ne7 {[%clk 0:02:26.5]} 15. Nc4 {[%clk 0:02:09.6]}
15... Qxe2+ {[%clk 0:02:24.8]} 16. Qxe2 {[%clk 0:02:09.4]} 16... dxe2 {[%clk
0:02:25.7]} 17. Nd6+ {[%clk 0:02:07.8]} 17... Kd7 {[%clk 0:02:22.6]} 18. Kxe2
{[%clk 0:01:56.3]} 18... Ba6+ {[%clk 0:02:21.9]} 19. Kf3 {[%clk 0:01:43.3]}
19... Nd5 {[%clk 0:02:21.9]} 20. Ne4 {[%clk 0:01:27.4]} 20... Bb7 {[%clk
0:02:13.9]} 21. Rhd1 {[%clk 0:01:18.6]} 21... Rab8 {[%clk 0:02:12.7]} 22. Nc5+
{[%clk 0:01:14.2]} 22... Kc7 {[%clk 0:02:12.7]} 23. Ke2 {[%clk 0:01:10.4]} 23...
Rhd8 {[%clk 0:02:13]} 24. Kf1 {[%clk 0:01:04]} 24... Bf8 {[%clk 0:02:04.2]} 25.
Bb2 {[%clk 0:00:46.4]} 25... Bxc5 {[%clk 0:02:02.8]} 26. Bxd5 {[%clk 0:00:44.2]}
26... Ba6+ {[%clk 0:01:57.5]} 27. Kg2 {[%clk 0:00:39.4]} 27... exd5 {[%clk
0:01:51.9]} 28. Rxc5 {[%clk 0:00:38]} 28... Rxb3 {[%clk 0:01:52.4]} 29. Be5+
{[%clk 0:00:37]} 29... Kb7 {[%clk 0:01:52.4]} 30. Rdc1 {[%clk 0:00:32.6]} 30...
Bc4 {[%clk 0:01:50.7]} 31. a5 {[%clk 0:00:26.9]} 31... Rb5 {[%clk 0:01:49.8]}
32. Bd4 {[%clk 0:00:25.6]} 32... Re8 {[%clk 0:01:45.8]} 33. a6+ {[%clk
0:00:24.2]} 33... Kc7 {[%clk 0:01:40.9]} 34. Rxb5 {[%clk 0:00:24.4]} 34... Bxb5
{[%clk 0:01:41.8]} 35. Bxa7 {[%clk 0:00:24.5]} 35... Bxa6 {[%clk 0:01:42.2]} 36.
Bc5 {[%clk 0:00:22.9]} 36... Bc4 {[%clk 0:01:31.9]} 37. Ra1 {[%clk 0:00:22.1]}
37... Rb8 {[%clk 0:01:27.4]} 38. Ra7+ {[%clk 0:00:22]} 38... Rb7 {[%clk
0:01:24.1]} 39. Rxb7+ {[%clk 0:00:22.4]} 39... Kxb7 {[%clk 0:01:25]} 40. Kf3
{[%clk 0:00:23.1]} 40... Ka6 {[%clk 0:01:20.4]} 41. Ke3 {[%clk 0:00:23.1]} 41...
Kb5 {[%clk 0:01:21.1]} 42. Kd4 {[%clk 0:00:23.2]} 42... Ka4 {[%clk 0:01:20.5]}
43. Kc3 {[%clk 0:00:19.9]} 43... Bf1 {[%clk 0:01:19.1]} 44. h4 {[%clk
0:00:18.2]} 44... f6 {[%clk 0:01:19]} 45. Be7 {[%clk 0:00:17.8]} 45... h6 {[%clk
0:01:13.4]} 46. Bf8 {[%clk 0:00:17.4]} 46... g5 {[%clk 0:01:10.6]} 47. Be7
{[%clk 0:00:12.4]} 47... Be2 {[%clk 0:01:03.9]} 48. Kd4 {[%clk 0:00:12.3]} 48...
gxh4 {[%clk 0:00:58.9]} 49. gxh4 {[%clk 0:00:12.7]} 49... Kb3 {[%clk 0:00:59]}
50. Bxf6 {[%clk 0:00:11.1]} 50... Kc2 {[%clk 0:00:59.5]} 51. Bg7 {[%clk
0:00:09.3]} 51... h5 {[%clk 0:00:59]} 52. Bh6 {[%clk 0:00:09.3]} 52... Bg4
{[%clk 0:00:56.8]} 53. Be3 {[%clk 0:00:09.1]} 53... Bf3 {[%clk 0:00:50.2]} 54.
Kc5 {[%clk 0:00:09.3]} 54... Kd3 {[%clk 0:00:49.3]} 55. Bd4 {[%clk 0:00:09.7]}
55... Bg2 {[%clk 0:00:34]} 56. Be3 {[%clk 0:00:10.2]} 56... Ke4 {[%clk
0:00:25.3]} 57. Bd4 {[%clk 0:00:11.1]} 57... Bf3 {[%clk 0:00:24.4]} 58. Be3
{[%clk 0:00:11.3]} 58... Be2 {[%clk 0:00:18.7]} 59. Bd4 {[%clk 0:00:11.3]} 59...
Bb5 {[%clk 0:00:17.6]} 60. Be3 {[%clk 0:00:11.4]} 60... Kf5 {[%clk 0:00:17.1]}
61. Bd4 {[%clk 0:00:11.3]} 61... Kg6 {[%clk 0:00:16.1]} 62. Be3 {[%clk 0:00:11]}
62... Kf5 {[%clk 0:00:16.7]} 63. Bg5 {[%clk 0:00:10.1]} 63... Kg4 {[%clk
0:00:17.6]} 64. Kd4 {[%clk 0:00:08.8]} 64... Be2 {[%clk 0:00:14.3]} 65. Kc5
{[%clk 0:00:07.7]} 65... Bb5 {[%clk 0:00:14.5]} 66. Kd4 {[%clk 0:00:07.8]} 66...
Ba4 {[%clk 0:00:15.2]} 67. Kc5 {[%clk 0:00:07.9]} 67... Kh3 {[%clk 0:00:12.8]}
68. Kd4 {[%clk 0:00:07.8]} 68... Kg4 {[%clk 0:00:12.9]} 69. Kc5 {[%clk
0:00:07.7]} 69... Kf3 {[%clk 0:00:13.8]} 70. Be3 {[%clk 0:00:06.8]} 70... Bb5
{[%clk 0:00:11.6]} 71. Kd4 {[%clk 0:00:05.1]} 71... Bf1 {[%clk 0:00:09.9]} 72.
Kc5 {[%clk 0:00:05]} 72... Ke4 {[%clk 0:00:09.9]} 73. Bd4 {[%clk 0:00:05.2]}
73... Bc4 {[%clk 0:00:08.4]} 74. Be3 {[%clk 0:00:06.1]} 74... Ba2 {[%clk
0:00:08.4]} 75. Bd4 {[%clk 0:00:06.2]} 75... Bb1 {[%clk 0:00:05.3]} 76. Be3
{[%clk 0:00:07.1]} 76... Bd3 {[%clk 0:00:05.4]} 77. Bd4 {[%clk 0:00:07.5]} 77...
Be2 {[%clk 0:00:04.8]} 78. Be3 {[%clk 0:00:07.9]} 78... Ke5 {[%clk 0:00:05.7]}
79. Bd4+ {[%clk 0:00:07.7]} 79... Kf5 {[%clk 0:00:06.6]} 80. Be3 {[%clk
0:00:08]} 80... Kg4 {[%clk 0:00:06.4]} 81. Bg5 {[%clk 0:00:07.9]} 81... Bf3
{[%clk 0:00:07.3]} 82. Kd4 {[%clk 0:00:06.8]} 82... Kh3 {[%clk 0:00:05.8]} 83.
Ke3 {[%clk 0:00:06.6]} 83... Kg2 {[%clk 0:00:06]} 84. Kd4 {[%clk 0:00:06.9]}
84... Bd1 {[%clk 0:00:05.2]} 85. Be3 {[%clk 0:00:05.7]} 85... Bb3 {[%clk
0:00:05.1]} 86. Kc5 {[%clk 0:00:05.9]} 86... Bc2 {[%clk 0:00:05.6]} 87. Kd4
{[%clk 0:00:06.2]} 87... Be4 {[%clk 0:00:06.1]} 88. Kc5 {[%clk 0:00:06.5]} 88...
Kf3 {[%clk 0:00:07]} 89. Kd4 {[%clk 0:00:06.6]} 89... Bf5 {[%clk 0:00:06.2]} 90.
Ke5 {[%clk 0:00:06.4]} 90... Bg6 {[%clk 0:00:05]} 91. Kd4 {[%clk 0:00:07.3]}
91... Bh7 {[%clk 0:00:05.2]} 92. Kc5 {[%clk 0:00:06.8]} 92... Ke4 {[%clk
0:00:05.5]} 93. Bd4 {[%clk 0:00:07.1]} 93... Bg8 {[%clk 0:00:04]} 94. Be3 {[%clk
0:00:07.2]} 94... Be6 {[%clk 0:00:04.5]} 95. Bd4 {[%clk 0:00:07.7]} 95... Bg8
{[%clk 0:00:05.4]} 96. Be3 {[%clk 0:00:08]} 96... Kf5 {[%clk 0:00:06.3]} 97. Kd4
{[%clk 0:00:07.2]} 97... Ke6 {[%clk 0:00:06.3]} 98. Bg5 {[%clk 0:00:07]} 98...
Kd7 {[%clk 0:00:07.2]} 99. Kc5 {[%clk 0:00:07]} 99... Kc7 {[%clk 0:00:07.1]}
100. Be3 {[%clk 0:00:07.1]} 100... Kb7 {[%clk 0:00:07.6]} 101. Bd4 {[%clk
0:00:07.8]} 101... Bf7 {[%clk 0:00:07.9]} 1/2-1/2

[Event "*** SCC Grand Prix: Titled Tuesday Blitz"]
[Site "Chess.com"]
[Date "2020.06.09"]
[Round "8"]
[White "Volodar_Murzin"]
[Black "Alexander_Moskalenko"]
[Result "1/2-1/2"]
[WhiteElo "2737"]
[BlackElo "2835"]
[TimeControl "180+1"]
[EndTime "10:29:24 PDT"]
[Termination "Game drawn by repetition"]

1. e4 {[%clk 0:02:55.1]} 1... e6 {[%clk 0:02:59.7]} 2. d4 {[%clk 0:02:54.9]}
2... d5 {[%clk 0:02:59.2]} 3. Nc3 {[%clk 0:02:54.8]} 3... Nf6 {[%clk 0:02:59]}
4. e5 {[%clk 0:02:54.2]} 4... Nfd7 {[%clk 0:02:58.9]} 5. f4 {[%clk 0:02:54.7]}
5... c5 {[%clk 0:02:59.3]} 6. Nf3 {[%clk 0:02:55]} 6... Nc6 {[%clk 0:02:59.9]}
7. Be3 {[%clk 0:02:54.5]} 7... Qb6 {[%clk 0:02:59.5]} 8. a3 {[%clk 0:02:52.1]}
8... cxd4 {[%clk 0:02:49.9]} 9. Nxd4 {[%clk 0:02:51.2]} 9... Bc5 {[%clk
0:02:50.4]} 10. Na4 {[%clk 0:02:49.1]} 10... Qa5+ {[%clk 0:02:50.5]} 11. Nc3
{[%clk 0:02:48.7]} 11... Qb6 {[%clk 0:02:47.1]} 12. Na4 {[%clk 0:02:47.7]} 12...
Qa5+ {[%clk 0:02:46.9]} 13. Nc3 {[%clk 0:02:47.6]} 13... Qb6 {[%clk 0:02:43.6]}
1/2-1/2

[Event "*** SCC Grand Prix: Titled Tuesday Blitz"]
[Site "Chess.com"]
[Date "2020.06.09"]
[Round "8"]
[White "m_ezat"]
[Black "TomsKantans"]
[Result "0-1"]
[WhiteElo "2469"]
[BlackElo "2631"]
[TimeControl "180+1"]
[EndTime "10:31:03 PDT"]
[Termination "TomsKantans won by resignation"]

1. d4 {[%clk 0:03:00.9]} 1... Nf6 {[%clk 0:02:59.4]} 2. c4 {[%clk 0:02:56.8]}
2... e6 {[%clk 0:02:59.2]} 3. Nc3 {[%clk 0:02:57.1]} 3... Bb4 {[%clk 0:02:58.6]}
4. e3 {[%clk 0:02:57.6]} 4... b6 {[%clk 0:02:58.1]} 5. a3 {[%clk 0:02:58.1]}
5... Bxc3+ {[%clk 0:02:58.1]} 6. bxc3 {[%clk 0:02:58.7]} 6... Bb7 {[%clk
0:02:57.2]} 7. f3 {[%clk 0:02:58.7]} 7... d6 {[%clk 0:02:47.6]} 8. Bd3 {[%clk
0:02:58.3]} 8... Nbd7 {[%clk 0:02:46.9]} 9. Ne2 {[%clk 0:02:57.8]} 9... O-O
{[%clk 0:02:46.5]} 10. O-O {[%clk 0:02:58.3]} 10... e5 {[%clk 0:02:45.8]} 11. e4
{[%clk 0:02:58.9]} 11... Nh5 {[%clk 0:02:35.4]} 12. f4 {[%clk 0:02:57.6]} 12...
exf4 {[%clk 0:02:31.4]} 13. Nxf4 {[%clk 0:02:57.3]} 13... Nxf4 {[%clk
0:02:32.3]} 14. Bxf4 {[%clk 0:02:57.1]} 14... Qh4 {[%clk 0:02:29]} 15. Qd2
{[%clk 0:02:47.7]} 15... Rae8 {[%clk 0:02:15.4]} 16. Rae1 {[%clk 0:02:36]} 16...
Qh5 {[%clk 0:01:57.3]} 0-1

[Event "*** SCC Grand Prix: Titled Tuesday Blitz"]
[Site "Chess.com"]
[Date "2020.06.09"]
[Round "8"]
[White "Chess2019Player"]
[Black "bratkoo"]
[Result "0-1"]
[WhiteElo "2168"]
[BlackElo "2328"]
[TimeControl "180+1"]
[EndTime "10:31:08 PDT"]
[Termination "bratkoo won by resignation"]

1. e4 {[%clk 0:03:00.9]} 1... e6 {[%clk 0:02:59.8]} 2. d4 {[%clk 0:02:56.2]}
2... d5 {[%clk 0:02:59.7]} 3. Nd2 {[%clk 0:02:56.7]} 3... Nf6 {[%clk 0:02:57.8]}
4. e5 {[%clk 0:02:56.3]} 4... Nfd7 {[%clk 0:02:58.5]} 5. c3 {[%clk 0:02:55.3]}
5... c5 {[%clk 0:02:59.4]} 6. Bd3 {[%clk 0:02:54.8]} 6... Nc6 {[%clk 0:03:00.3]}
7. Ne2 {[%clk 0:02:51.8]} 7... cxd4 {[%clk 0:03:01.2]} 8. cxd4 {[%clk
0:02:51.7]} 8... f6 {[%clk 0:02:59]} 9. exf6 {[%clk 0:02:51.2]} 9... Nxf6 {[%clk
0:02:59]} 10. O-O {[%clk 0:02:52.1]} 10... Bd6 {[%clk 0:02:59.1]} 11. Nf3 {[%clk
0:02:52.1]} 11... O-O {[%clk 0:02:59.2]} 12. Bg5 {[%clk 0:02:52.6]} 12... Qb6
{[%clk 0:02:57.6]} 13. Qb1 {[%clk 0:02:39.8]} 13... Nb4 {[%clk 0:02:36]} 14. Bf4
{[%clk 0:02:31.9]} 14... Nxd3 {[%clk 0:02:33.5]} 15. Qxd3 {[%clk 0:02:32.8]}
15... Bxf4 {[%clk 0:02:26.4]} 16. Nxf4 {[%clk 0:02:33.7]} 16... Ne4 {[%clk
0:02:26.6]} 17. Nh5 {[%clk 0:02:20.4]} 17... Qxb2 {[%clk 0:02:19.9]} 18. Ne5
{[%clk 0:02:07.1]} 18... Rxf2 {[%clk 0:02:12.6]} 19. Qg3 {[%clk 0:02:06.4]}
19... Rxf1+ {[%clk 0:02:09.1]} 20. Rxf1 {[%clk 0:02:05.4]} 20... Qxd4+ {[%clk
0:02:08.9]} 21. Kh1 {[%clk 0:02:02.5]} 21... Nxg3+ {[%clk 0:02:08.8]} 0-1